bitfinex/quotes_SOLUSD_20250522
["timestamp","ask_amount","ask_price","bid_price","bid_amount"]
[1747877627893,34.34,174.59,174.57,20.92696193]
[1747877628411,34.34,174.59,174.58,20.92696193]
[1747877628815,34.34,174.59,174.57,20.92696193]
[1747877629014,34.34,174.59,174.56,20.92696193]
[1747877629407,34.34,174.59,174.53,20.92696193]
[1747877629408,20.92696193,174.58,174.53,20.92696193]
[1747877629801,20.92696193,174.58,174.52,3.10808596]
[1747877630000,26.79748461,174.57,174.52,24.03504789]
[1747877630411,26.79748461,174.57,174.52,3.10808596]
[1747877630713,0.14216157,174.58,174.53,20.92696193]
[1747877630917,20.92696193,174.57,174.52,24.03504789]
[1747877631118,21.0691235,174.58,174.53,20.92696193]
[1747877631318,0.14216157,174.58,174.53,20.92696193]
[1747877631705,55.26696193,174.59,174.54,20.92696193]
[1747877631904,40.06771786,174.59,174.54,20.92696193]
[1747877632102,60.99467979,174.59,174.54,20.92696193]
[1747877632815,60.99467979,174.59,174.53,20.92696193]
[1747877633915,220.04676971,174.62,174.56,20.92696193]
[1747877634113,42.82,174.58,174.56,20.92696193]
[1747877634721,42.82,174.58,174.54,20.92696193]
[1747877635219,42.82,174.58,174.55,20.92696193]
[1747877636301,214.32,174.62,174.57,20.92696193]
[1747877636517,257.14,174.62,174.61,20.92696193]
[1747877638109,257.14,174.62,174.56,26.0]
[1747877638309,257.14,174.62,174.59,20.92696193]
[1747877638518,257.14,174.62,174.61,20.92696193]
[1747877640298,257.14,174.62,174.54,26.0]
[1747877640704,278.06696193,174.62,174.57,20.92696193]
[1747877641029,20.92696193,174.6,174.53,5.72967398]
[1747877641341,55.28696193,174.59,174.54,20.92696193]
[1747877641544,55.28696193,174.59,174.52,3.10808596]
[1747877641545,20.92696193,174.58,174.53,20.92696193]
[1747877641846,5.72806662,174.58,174.54,20.92696193]
[1747877642022,0.14216157,174.57,174.53,20.92696193]
[1747877642541,39.71877236,174.57,174.52,3.10808596]
[1747877642724,39.71877236,174.57,174.52,24.03504789]
[1747877643741,5.72868927,174.56,174.52,24.03504789]
[1747877644043,42.84,174.55,174.53,20.92696193]
[1747877644218,214.32,174.62,174.54,20.92696193]
[1747877644412,77.2,174.61,174.6,20.92696193]
[1747877644635,42.84,174.61,174.6,20.92696193]
[1747877645143,42.84,174.64,174.6,20.92696193]
[1747877645324,42.84,174.64,174.63,20.92696193]
[1747877645851,42.84,174.64,174.54,26.0]
[1747877646023,20.92696193,174.63,174.58,20.92696193]
[1747877646725,69.49309359,174.64,174.58,20.92696193]
[1747877646912,42.84,174.64,174.6,20.92696193]
[1747877647519,48.56626149,174.64,174.6,20.92696193]
[1747877647718,21.0691235,174.63,174.54,5.72929806]
[1747877647946,21.0691235,174.63,174.58,20.92696193]
[1747877648261,21.0691235,174.63,174.57,20.92696193]
[1747877648450,20.92696193,174.62,174.57,20.92696193]
[1747877648752,20.92696193,174.59,174.54,20.92696193]
[1747877649048,20.92696193,174.58,174.53,20.92696193]
[1747877649356,42.78,174.57,174.54,20.92696193]
[1747877650247,42.78,174.57,174.52,8.83805381]
[1747877650248,42.78,174.57,174.56,20.92696193]
[1747877651067,42.78,174.59,174.56,20.92696193]
[1747877651343,42.78,174.59,174.58,20.92696193]
[1747877653353,26.0,174.66,174.58,26.65499492]
[1747877653672,42.78,174.67,174.65,20.92696193]
[1747877653829,42.78,174.67,174.66,20.92696193]
[1747877654354,42.78,174.67,174.64,20.92696193]
[1747877654527,63.70696193,174.67,174.62,20.92696193]
[1747877654723,42.78,174.67,174.63,20.92696193]
[1747877655033,42.78,174.67,174.65,20.92696193]
[1747877655237,42.78,174.67,174.64,20.92696193]
[1747877655425,42.78,174.66,174.64,20.92696193]
[1747877655624,42.78,174.66,174.58,26.0]
[1747877655827,63.70696193,174.66,174.61,20.92696193]
[1747877656249,5.72573718,174.65,174.61,20.92696193]
[1747877656456,5.72573718,174.65,174.62,20.92696193]
[1747877656751,5.72573718,174.65,174.61,20.92696193]
[1747877657254,48.50547269,174.66,174.62,20.92696193]
[1747877657829,42.78,174.66,174.63,20.92696193]
[1747877658032,82.86549545,174.66,174.63,20.92696193]
[1747877658553,77.14,174.66,174.63,20.92696193]
[1747877658854,82.86557639,174.66,174.62,20.92696193]
[1747877659454,103.79253832,174.66,174.61,20.92696193]
[1747877659825,129.79253832,174.66,174.61,20.92696193]
[1747877660026,77.14,174.66,174.63,20.92696193]
[1747877660228,77.14,174.66,174.57,26.0]
[1747877660229,42.78,174.66,174.64,20.92696193]
[1747877660429,42.78,174.66,174.65,20.92696193]
[1747877660727,42.78,174.66,174.64,20.92696193]
[1747877660728,48.50540936,174.66,174.64,20.92696193]
[1747877661750,42.78,174.66,174.65,20.92696193]
[1747877662949,42.78,174.66,174.64,20.92696193]
[1747877664153,48.50551194,174.66,174.62,20.92696193]
[1747877664663,69.43247387,174.66,174.61,20.92696193]
[1747877665053,83.74599728,174.66,174.6,20.92696193]
[1747877665351,48.50551194,174.66,174.63,20.92696193]
[1747877666055,42.78,174.66,174.62,20.92696193]
[1747877666226,42.78,174.66,174.63,20.92696193]
[1747877666548,42.76,174.7,174.65,20.92696193]
[1747877666739,48.48419377,174.7,174.68,20.92696193]
[1747877666936,48.48419377,174.7,174.61,26.0]
[1747877667139,39.71877236,174.68,174.58,34.36]
[1747877667339,39.71877236,174.68,174.63,20.92696193]
[1747877667542,20.92696193,174.68,174.63,20.92696193]
[1747877667767,34.36,174.67,174.64,20.92696193]
[1747877668054,34.36,174.67,174.65,20.92696193]
[1747877669238,40.08524186,174.67,174.65,20.92696193]
[1747877669439,5.72473482,174.69,174.66,20.92696193]
[1747877670034,5.72473482,174.69,174.65,20.92696193]
[1747877670232,108.84417923,174.7,174.66,20.92696193]
[1747877672952,103.12,174.7,174.67,20.92696193]
[1747877673135,42.76,174.7,174.68,20.92696193]
[1747877673971,48.48410843,174.7,174.68,20.92696193]
[1747877674256,48.48410843,174.7,174.61,26.0]
[1747877674257,42.76,174.7,174.66,20.92696193]
[1747877674431,42.76,174.7,174.67,20.92696193]
[1747877674634,48.48412381,174.7,174.67,20.92696193]
[1747877674849,48.48412381,174.7,174.66,20.92696193]
[1747877675048,48.48412381,174.7,174.67,20.92696193]
[1747877676058,42.76,174.7,174.67,20.92696193]
[1747877676560,0.14216157,174.69,174.58,5.72803299]
[1747877676735,20.92696193,174.62,174.53,5.72967398]
[1747877676940,63.68696193,174.61,174.56,20.92696193]
[1747877677145,42.76,174.61,174.56,20.92696193]
[1747877677455,42.76,174.61,174.6,20.92696193]
[1747877677660,42.76,174.61,174.56,26.0]
[1747877677852,42.76,174.61,174.59,20.92696193]
[1747877678055,42.76,174.61,174.6,20.92696193]
[1747877678253,41.589287,174.61,174.6,20.92696193]
[1747877678639,41.589287,174.61,174.59,20.92696193]
[1747877680662,20.92696193,174.6,174.52,8.8379016]
[1747877680841,20.92696193,174.6,174.54,20.92696193]
[1747877681168,81.67633981,174.61,174.52,8.8379016]
[1747877681169,81.67633981,174.61,174.56,20.92696193]
[1747877681768,102.60330174,174.61,174.56,20.92696193]
[1747877682870,81.67633981,174.61,174.56,20.92696193]
[1747877683047,102.60330174,174.61,174.55,20.92696193]
[1747877683250,20.92696193,174.6,174.55,20.92696193]
[1747877683755,102.60330174,174.61,174.55,20.92696193]
[1747877684473,102.60330174,174.61,174.56,20.92696193]
[1747877685163,102.60330174,174.61,174.55,20.92696193]
[1747877686295,41.589287,174.61,174.58,20.92696193]
[1747877686564,47.31639173,174.61,174.58,20.92696193]
[1747877686868,47.31639173,174.61,174.57,20.92696193]
[1747877687170,68.24335366,174.61,174.56,20.92696193]
[1747877688554,47.31639173,174.61,174.57,20.92696193]
[1747877688760,47.31639173,174.61,174.58,20.92696193]
[1747877689269,47.31639173,174.61,174.57,20.92696193]
[1747877689769,47.31639173,174.61,174.56,20.92696193]
[1747877690288,47.31639173,174.61,174.57,20.92696193]
[1747877691766,47.31639173,174.61,174.57,13.12145346]
[1747877692566,60.43784519,174.61,174.56,13.12145346]
[1747877692774,13.26361503,174.6,174.55,13.12145346]
[1747877693476,60.43784519,174.61,174.56,13.12145346]
[1747877693856,60.43784519,174.61,174.55,13.12145346]
[1747877696852,13.12145346,174.6,174.55,13.12145346]
[1747877697058,5.7277049,174.59,174.55,13.12145346]
[1747877698564,18.84915836,174.59,174.53,13.12145346]
[1747877699374,5.7277049,174.59,174.55,13.12145346]
[1747877700288,41.589287,174.61,174.57,13.12145346]
[1747877700592,41.589287,174.61,174.58,13.12145346]
[1747877701676,41.589287,174.61,174.59,13.12145346]
[1747877703771,42.74,174.64,174.6,13.12145346]
[1747877703962,42.74,174.64,174.63,13.12145346]
[1747877704682,42.74,174.69,174.63,39.12145346]
[1747877704867,42.74,174.73,174.68,13.12145346]
[1747877705190,42.74,174.73,174.69,13.12145346]
[1747877705600,42.74,174.73,174.71,13.12145346]
[1747877705757,48.46311593,174.73,174.7,20.96062135]
[1747877706171,42.74,174.73,174.7,20.96062135]
[1747877706562,48.46316413,174.73,174.64,26.0]
[1747877706763,0.14216157,174.7,174.62,20.96062135]
[1747877707093,20.96062135,174.66,174.6,20.96062135]
[1747877707278,42.72,174.65,174.62,20.96062135]
[1747877707476,5.72606504,174.64,174.61,20.96062135]
[1747877707679,48.44577323,174.65,174.61,20.96062135]
[1747877708191,42.72,174.65,174.61,20.96062135]
[1747877708488,42.72,174.65,174.62,20.96062135]
[1747877708789,48.44577286,174.65,174.62,20.96062135]
[1747877709494,42.72,174.65,174.62,20.96062135]
[1747877710094,48.34577908,174.65,174.62,20.96062135]
[1747877711667,42.62,174.65,174.61,20.96062135]
[1747877711873,42.62,174.65,174.62,20.96062135]
[1747877712986,42.62,174.65,174.64,20.96062135]
[1747877713186,42.72,174.7,174.64,20.96062135]
[1747877713486,20.96062135,174.7,174.61,5.72699576]
[1747877713692,20.96062135,174.69,174.64,20.96062135]
[1747877714068,21.10278292,174.7,174.65,20.96062135]
[1747877714284,144.0740303,174.71,174.66,20.96062135]
[1747877714480,20.96062135,174.68,174.6,26.0]
[1747877714789,5.72508158,174.67,174.63,20.96062135]
[1747877715365,5.72442612,174.69,174.65,20.96062135]
[1747877715766,26.68504747,174.69,174.64,20.96062135]
[1747877717483,26.68504747,174.69,174.6,31.72729309]
[1747877717692,26.68504747,174.69,174.64,20.96062135]
[1747877718988,21.10278292,174.68,174.63,20.96062135]
[1747877719171,21.10278292,174.68,174.62,20.96062135]
[1747877719379,26.68504747,174.69,174.64,20.96062135]
[1747877720079,20.96062135,174.68,174.63,20.96062135]
[1747877720468,20.96062135,174.66,174.58,26.0]
[1747877720671,136.9,174.68,174.62,20.96062135]
[1747877720872,5.72508158,174.67,174.63,20.96062135]
[1747877722307,5.72508158,174.67,174.58,26.0]
[1747877722596,5.72508158,174.67,174.63,20.96062135]
[1747877722898,142.62480089,174.68,174.64,20.96062135]
[1747877723373,20.96062135,174.67,174.62,20.96062135]
[1747877723572,20.96062135,174.67,174.61,20.96062135]
[1747877724186,39.75243178,174.64,174.52,3.10808596]
[1747877724494,20.96062135,174.61,174.56,20.96062135]
[1747877724699,20.96062135,174.61,174.55,20.96062135]
[1747877725001,20.96062135,174.6,174.53,26.0]
[1747877725190,20.96062135,174.6,174.55,20.96062135]
[1747877725376,20.96062135,174.58,174.53,20.96062135]
[1747877725782,0.14216157,174.59,174.54,20.96062135]
[1747877725783,21.10278292,174.59,174.54,20.96062135]
[1747877725968,20.96062135,174.58,174.53,20.96062135]
[1747877726699,26.68898246,174.57,174.52,3.10808596]
[1747877726869,63.68062135,174.56,174.52,3.10808596]
[1747877727191,20.96062135,174.54,174.52,3.10808596]
[1747877727415,0.14216157,174.55,174.52,3.10808596]
[1747877727416,21.10278292,174.53,174.52,3.10808596]
[1747877727591,20.96062135,174.53,174.52,3.10808596]
[1747877728092,40.04592754,174.53,174.52,3.10808596]
[1747877728465,19.08530619,174.53,174.52,3.10808596]
[1747877730673,45.77560152,174.53,174.52,3.10808596]
[1747877730873,45.91776309,174.53,174.52,3.10808596]
[1747877731086,182.81776309,174.53,174.52,3.10808596]
[1747877731890,155.98530619,174.53,174.52,3.10808596]
[1747877732681,161.71498017,174.53,174.52,3.10808596]
[1747877732882,155.98530619,174.53,174.52,3.10808596]
[1747877733090,155.98530619,174.53,174.52,24.06870731]
[1747877733285,155.98530619,174.53,174.52,3.10808596]
[1747877734079,19.08530619,174.53,174.52,24.06870731]
[1747877734279,19.08530619,174.53,174.52,29.7987096]
[1747877735703,19.08530619,174.53,174.52,3.10808596]
[1747877735902,19.08530619,174.53,174.52,24.06870731]
[1747877736401,19.08530619,174.53,174.52,8.83808825]
[1747877736591,19.08530619,174.53,174.52,29.7987096]
[1747877737113,19.08530619,174.53,174.52,24.06870731]
[1747877737309,19.08530619,174.53,174.52,3.10808596]
[1747877737483,19.08530619,174.53,174.52,24.06870731]
[1747877737685,19.08530619,174.53,174.52,29.7987096]
[1747877739009,19.08530619,174.53,174.52,3.10808596]
[1747877739230,19.08530619,174.53,174.52,29.7987096]
[1747877739808,214.36,174.64,174.55,26.0]
[1747877740008,214.36,174.64,174.63,20.96062135]
[1747877741700,214.36,174.64,174.59,26.0]
[1747877742024,214.36,174.64,174.63,20.96062135]
[1747877743134,214.36,174.64,174.55,26.0]
[1747877743135,220.08606504,174.64,174.55,26.0]
[1747877743341,241.04668639,174.64,174.55,26.0]
[1747877743503,34.36,174.63,174.59,20.96062135]
[1747877743841,55.32062135,174.63,174.58,20.96062135]
[1747877744408,21.10278292,174.62,174.57,20.96062135]
[1747877745338,26.82982265,174.62,174.57,20.96062135]
[1747877745710,5.8692013,174.62,174.57,20.96062135]
[1747877745918,26.82982265,174.62,174.57,20.96062135]
[1747877747748,5.72703973,174.62,174.58,20.96062135]
[1747877748047,61.04704294,174.63,174.58,20.96062135]
[1747877748214,40.08642159,174.63,174.59,20.96062135]
[1747877748619,61.04704294,174.63,174.58,20.96062135]
[1747877749108,0.14216157,174.6,174.56,20.96062135]
[1747877749312,0.14216157,174.6,174.53,26.0]
[1747877749313,20.96062135,174.6,174.55,20.96062135]
[1747877749509,20.96062135,174.59,174.54,20.96062135]
[1747877749730,44.22,174.58,174.54,20.96062135]
[1747877749936,5.72836111,174.57,174.54,20.96062135]
[1747877750131,49.94811109,174.58,174.54,20.96062135]
[1747877750332,44.22,174.58,174.55,20.96062135]
[1747877750534,49.94803788,174.58,174.55,20.96062135]
[1747877751417,49.94803788,174.58,174.54,20.96062135]
[1747877751622,84.30803788,174.58,174.54,20.96062135]
[1747877751929,78.58,174.58,174.55,20.96062135]
[1747877752637,84.30807778,174.58,174.55,20.96062135]
[1747877753711,78.58,174.58,174.56,20.96062135]
[1747877754314,78.48678201,174.58,174.56,20.96062135]
[1747877756148,214.36,174.64,174.57,20.96062135]
[1747877756335,214.36,174.64,174.63,20.96062135]
[1747877756534,44.22,174.65,174.63,20.96062135]
[1747877756729,44.22,174.65,174.64,20.96062135]
[1747877756925,49.94574163,174.65,174.63,20.96062135]
[1747877757131,49.94574163,174.65,174.62,20.96062135]
[1747877757641,44.22,174.65,174.63,20.96062135]
[1747877758133,49.94573779,174.65,174.63,20.96062135]
[1747877758343,44.22,174.65,174.58,5.72801089]
[1747877758534,49.94586535,174.65,174.62,20.96062135]
[1747877759552,70.9064867,174.65,174.6,20.96062135]
[1747877759926,105.2664867,174.65,174.6,20.96062135]
[1747877760129,84.30586535,174.65,174.61,20.96062135]
[1747877760539,105.2664867,174.65,174.6,20.96062135]
[1747877761137,84.30586535,174.65,174.61,20.96062135]
[1747877762541,44.22,174.65,174.64,20.96062135]
[1747877765456,44.22,174.65,174.63,20.96062135]
[1747877765863,49.94583894,174.65,174.63,20.96062135]
[1747877766057,49.94583894,174.65,174.53,5.72967398]
[1747877766058,5.72639294,174.63,174.53,5.72967398]
[1747877766275,20.96062135,174.6,174.55,20.96062135]
[1747877766431,20.96062135,174.56,174.54,0.11]
[1747877766630,26.0,174.53,174.52,3.10808596]
[1747877766863,47.10278292,174.53,174.52,3.10808596]
[1747877767060,65.75243178,174.53,174.52,3.10808596]
[1747877767369,39.75243178,174.53,174.52,3.10808596]
[1747877767541,18.79181043,174.53,174.52,3.10808596]
[1747877767737,21.10278292,174.53,174.52,3.10808596]
[1747877767941,99.68278292,174.53,174.52,3.10808596]
[1747877768169,105.4124569,174.53,174.52,3.10808596]
[1747877768642,78.72216157,174.53,174.52,3.10808596]
[1747877768850,84.45183555,174.53,174.52,3.10808596]
[1747877769490,78.72216157,174.53,174.52,3.10808596]
[1747877769799,78.58,174.53,174.52,3.10808596]
[1747877770368,5.72672087,174.62,174.52,24.06870731]
[1747877770575,5.72672087,174.62,174.52,3.10808596]
[1747877770576,79.38216157,174.61,174.52,3.10808596]
[1747877770771,20.96062135,174.57,174.52,24.06870731]
[1747877770983,20.96062135,174.58,174.53,20.96062135]
[1747877771377,21.10278292,174.56,174.52,3.10808596]
[1747877771705,20.96062135,174.54,174.52,3.10808596]
[1747877771862,44.88,174.53,174.52,3.10808596]
[1747877772764,90.36210576,174.53,174.52,3.10808596]
[1747877773775,65.98278292,174.53,174.52,3.10808596]
[1747877773984,5.72934395,174.55,174.52,3.10808596]
[1747877774280,44.88,174.54,174.52,3.10808596]
[1747877775017,44.88,174.54,174.52,24.06870731]
[1747877775162,44.88,174.54,174.52,3.10808596]
[1747877775509,65.84062135,174.54,174.52,3.10808596]
[1747877775666,71.57003352,174.54,174.52,3.10808596]
[1747877776073,21.10278292,174.53,174.52,3.10808596]
[1747877777168,26.8324569,174.53,174.52,3.10808596]
[1747877777771,44.88,174.53,174.52,3.10808596]
[1747877779179,26.0,174.6,174.52,29.79869179]
[1747877779504,26.14216157,174.56,174.52,3.10808596]
[1747877779673,20.96062135,174.53,174.52,3.10808596]
[1747877780178,21.10278292,174.53,174.52,3.10808596]
[1747877781294,45.48210576,174.53,174.52,3.10808596]
[1747877781896,24.52148441,174.53,174.52,3.10808596]
[1747877782094,45.48210576,174.53,174.52,3.10808596]
[1747877784675,24.52148441,174.53,174.52,3.10808596]
[1747877784880,45.48210576,174.53,174.52,3.10808596]
[1747877785171,26.8324569,174.53,174.52,3.10808596]
[1747877785376,61.2124569,174.53,174.52,3.10808596]
[1747877786501,79.86210576,174.53,174.52,3.10808596]
[1747877786879,105.86210576,174.53,174.52,3.10808596]
[1747877787394,87.2124569,174.53,174.52,3.10808596]
[1747877788392,61.2124569,174.53,174.52,3.10808596]
[1747877789177,79.86210576,174.53,174.52,3.10808596]
[1747877789701,124.76210576,174.53,174.52,3.10808596]
[1747877791104,139.92887096,174.53,174.52,3.10808596]
[1747877791673,132.11321983,174.53,174.52,3.10808596]
[1747877792523,132.11321983,174.53,174.36,34.38]
[1747877792524,18.79181043,174.49,174.37,5.73463496]
[1747877792694,13.14497022,174.45,174.4,13.14497022]
[1747877792905,44.9,174.45,174.4,13.14497022]
[1747877793274,61.4827566,174.45,174.4,13.14497022]
[1747877793887,61.4827566,174.45,174.38,5.73428941]
[1747877794100,61.4827566,174.45,174.41,13.14497022]
[1747877795304,61.4827566,174.45,174.44,13.14497022]
[1747877795509,16.5827566,174.45,174.44,18.87760035]
[1747877796436,44.9,174.57,174.45,18.64964886]
[1747877796723,44.9,174.57,174.51,13.14497022]
[1747877796880,13.14497022,174.56,174.51,13.14497022]
[1747877797084,58.04497022,174.57,174.51,13.14497022]
[1747877797384,58.04497022,174.57,174.52,13.14497022]
[1747877797704,5.72868927,174.56,174.51,21.00737026]
[1747877798099,44.9,174.57,174.48,5.73124698]
[1747877798282,71.63587285,174.57,174.52,21.00737026]
[1747877798492,21.00737026,174.56,174.51,21.00737026]
[1747877799316,26.73629024,174.56,174.51,21.00737026]
[1747877799478,5.72891998,174.56,174.52,21.00737026]
[1747877800218,26.73629024,174.56,174.51,21.00737026]
[1747877800721,5.72891998,174.56,174.52,21.00737026]
[1747877801590,26.73629024,174.56,174.5,21.00737026]
[1747877801818,0.14216157,174.55,174.37,108.9766343]
[1747877801992,21.00737026,174.49,174.38,40.11460259]
[1747877802318,21.00737026,174.47,174.38,40.11460259]
[1747877802613,0.14216157,174.47,174.41,21.00737026]
[1747877802930,21.00737026,174.46,174.41,21.00737026]
[1747877803310,21.00737026,174.45,174.32,5.73657641]
[1747877803504,21.00737026,174.43,174.38,21.00737026]
[1747877803698,21.00737026,174.44,174.39,21.00737026]
[1747877804309,21.00737026,174.42,174.37,21.00737026]
[1747877804485,21.00737026,174.43,174.38,21.00737026]
[1747877804686,0.14216157,174.45,174.38,21.00737026]
[1747877804911,21.00737026,174.44,174.38,21.00737026]
[1747877805113,21.00737026,174.43,174.38,21.00737026]
[1747877805317,26.74065772,174.42,174.31,20.5616615]
[1747877805613,65.64737026,174.41,174.36,21.00737026]
[1747877806515,21.00737026,174.4,174.35,21.00737026]
[1747877806732,21.00737026,174.39,174.34,21.00737026]
[1747877806915,21.00737026,174.39,174.31,14.82480537]
[1747877807096,21.00737026,174.39,174.34,21.00737026]
[1747877807291,5.73460259,174.38,174.35,21.00737026]
[1747877807529,26.74197285,174.38,174.33,21.00737026]
[1747877807825,21.00737026,174.35,174.3,21.00737026]
[1747877808126,65.64737026,174.34,174.24,5.73921028]
[1747877808331,65.64737026,174.34,174.19,14.35182472]
[1747877808332,21.00737026,174.31,174.18,5.74118727]
[1747877808643,21.00737026,174.29,174.24,21.00737026]
[1747877808798,44.64,174.34,174.26,21.00737026]
[1747877809000,44.64,174.33,174.3,21.00737026]
[1747877809822,44.64,174.33,174.31,21.00737026]
[1747877810032,16.80848375,174.37,174.31,21.00737026]
[1747877810211,44.64,174.36,174.33,21.00737026]
[1747877810613,44.64,174.36,174.25,5.73870392]
[1747877810823,44.64,174.36,174.33,21.00737026]
[1747877811232,44.64,174.36,174.29,5.73750088]
[1747877811417,44.64,174.36,174.3,18.64964886]
[1747877811606,44.64,174.36,174.35,21.00737026]
[1747877813543,16.80848375,174.37,174.35,21.00737026]
[1747877814049,16.80848375,174.37,174.36,21.00737026]
[1747877815531,16.80848375,174.37,174.29,18.79181043]
[1747877815712,16.80848375,174.37,174.36,21.00737026]
[1747877815905,16.80848375,174.37,174.35,21.00737026]
[1747877816401,16.80848375,174.37,174.36,21.00737026]
[1747877818212,16.80848375,174.37,174.36,47.7500009]
[1747877818410,16.80848375,174.37,174.36,26.74263064]
[1747877819033,16.80848375,174.37,174.36,21.00737026]
[1747877819239,16.80848375,174.37,174.36,26.0]
[1747877819536,16.80848375,174.37,174.36,47.00737026]
[1747877820343,16.80848375,174.37,174.36,52.74263064]
[1747877820843,16.80848375,174.37,174.36,47.00737026]
[1747877821831,16.80848375,174.37,174.36,21.00737026]
[1747877822004,16.80848375,174.37,174.33,5.7361455]
[1747877822309,16.80848375,174.37,174.33,21.00737026]
[1747877822515,16.80848375,174.37,174.34,21.00737026]
[1747877822824,22.5434371,174.37,174.34,21.00737026]
[1747877823130,16.80848375,174.37,174.34,21.00737026]
[1747877824132,16.80848375,174.37,174.35,21.00737026]
[1747877824336,16.80848375,174.37,174.36,21.00737026]
[1747877824513,16.80848375,174.37,174.36,86.66438938]
[1747877825241,46.4,174.44,174.36,86.66438938]
[1747877825242,46.4,174.44,174.39,26.0]
[1747877825403,46.4,174.44,174.43,21.00737026]
[1747877826545,46.4,174.44,174.4,5.73394495]
[1747877826844,46.4,174.44,174.35,21.00737026]
[1747877826845,21.00737026,174.41,174.35,21.00737026]
[1747877827022,21.00737026,174.39,174.34,21.00737026]
[1747877827203,21.00737026,174.37,174.32,21.00737026]
[1747877827401,21.00737026,174.37,174.29,5.73755395]
[1747877827634,26.74263064,174.36,174.31,21.00737026]
[1747877827809,21.00737026,174.35,174.27,5.73790495]
[1747877828125,26.74263064,174.36,174.31,21.00737026]
[1747877828701,5.73493146,174.37,174.31,21.00737026]
[1747877828910,21.00737026,174.36,174.25,24.38852977]
[1747877829211,21.00737026,174.34,174.28,21.00737026]
[1747877829417,21.00737026,174.33,174.23,5.73953968]
[1747877829716,0.14216157,174.34,174.29,21.00737026]
[1747877829916,55.40737026,174.35,174.3,21.00737026]
[1747877830506,55.40737026,174.35,174.26,26.0]
[1747877830507,0.14216157,174.34,174.29,21.00737026]
[1747877830835,21.14953183,174.34,174.29,21.00737026]
[1747877831035,5.73624734,174.33,174.28,21.00737026]
[1747877831210,5.73624734,174.33,174.26,26.0]
[1747877831531,5.73624734,174.33,174.29,21.00737026]
[1747877832228,5.73624734,174.33,174.26,31.73854275]
[1747877832415,21.14953183,174.34,174.29,21.00737026]
[1747877832616,0.14216157,174.34,174.29,21.00737026]
[1747877832811,46.4,174.36,174.32,21.00737026]
[1747877834224,73.14275276,174.36,174.27,5.73822229]
[1747877834535,21.00737026,174.35,174.29,21.00737026]
[1747877835112,26.74309417,174.35,174.29,21.00737026]
[1747877835441,21.00737026,174.33,174.28,21.00737026]
[1747877835730,21.00737026,174.33,174.25,31.73856017]
[1747877835913,21.00737026,174.33,174.28,21.00737026]
[1747877837234,21.00737026,174.31,174.26,21.00737026]
[1747877837426,21.00737026,174.3,174.23,31.73943203]
[1747877837741,46.42,174.29,174.25,21.00737026]
[1747877838241,46.42,174.29,174.22,26.0]
[1747877838457,46.42,174.29,174.25,21.00737026]
[1747877838644,46.42,174.29,174.26,21.00737026]
[1747877838820,21.00737026,174.34,174.28,21.00737026]
[1747877839024,46.42,174.32,174.29,21.00737026]
[1747877839326,46.42,174.32,174.31,21.00737026]
[1747877839538,46.42,174.32,174.28,26.0]
[1747877839718,46.42,174.32,174.3,21.00737026]
[1747877839912,46.42,174.32,174.26,26.0]
[1747877840229,46.42,174.32,174.3,21.00737026]
[1747877840841,46.42,174.32,174.29,21.00737026]
[1747877841319,46.42,174.32,174.3,21.00737026]
[1747877841528,46.42,174.32,174.31,21.00737026]
[1747877843950,46.42,174.32,174.29,5.73746555]
[1747877844123,46.42,174.32,174.31,21.00737026]
[1747877844950,46.42,174.32,174.31,26.74427577]
[1747877846245,45.84,174.37,174.31,26.74427577]
[1747877846432,45.84,174.37,174.33,21.00737026]
[1747877846828,45.84,174.37,174.35,21.00737026]
[1747877847059,45.84,174.37,174.36,21.00737026]
[1747877848045,45.84,174.37,174.35,21.00737026]
[1747877848349,45.84,174.37,174.31,26.0]
[1747877848350,45.84,174.37,174.36,21.00737026]
[1747877849149,45.84,174.37,174.35,21.00737026]
[1747877850051,45.84,174.37,174.36,21.00737026]
[1747877851136,45.84,174.37,174.36,26.74263064]
[1747877851939,8.80834115,174.38,174.36,26.74263064]
[1747877852277,8.80834115,174.38,174.37,21.00737026]
[1747877853361,8.80834115,174.38,174.32,31.73657641]
[1747877853532,14.54296258,174.38,174.34,21.00737026]
[1747877853735,69.95033284,174.38,174.33,21.00737026]
[1747877853956,69.95033284,174.38,174.32,21.00737026]
[1747877854344,69.95033284,174.38,174.33,21.00737026]
[1747877854670,43.20834115,174.38,174.35,21.00737026]
[1747877855169,43.20834115,174.38,174.34,21.00737026]
[1747877855871,48.94301286,174.38,174.34,21.00737026]
[1747877856073,48.94301286,174.38,174.31,5.73690499]
[1747877856242,48.94301286,174.38,174.34,21.00737026]